bitfinex/quotes_BTCUSD_20220226
["timestamp","ask_amount","ask_price","bid_price","bid_amount"]
[1645845470150,40.88867003,39417.0,39416.0,0.677623]
[1645845470950,40.88867003,39417.0,39416.0,0.678623]
[1645845472152,40.88867003,39417.0,39416.0,0.677623]
[1645845472553,40.88867003,39417.0,39416.0,0.627623]
[1645845472855,40.88867003,39417.0,39416.0,0.677623]
[1645845474305,40.88867003,39417.0,39416.0,0.88340569]
[1645845476408,40.88867003,39417.0,39416.0,0.93010569]
[1645845476865,40.88867003,39417.0,39416.0,1.03010569]
[1645845477069,40.60726703,39417.0,39416.0,1.28000569]
[1645845477463,40.60726703,39417.0,39416.0,2.07491569]
[1645845477665,40.60726703,39417.0,39416.0,2.13833269]
[1645845478064,40.60726703,39417.0,39416.0,2.33833269]
[1645845478464,26.84881683,39417.0,39416.0,3.03282174]
[1645845478664,15.02665312,39417.0,39416.0,2.91703905]
[1645845478868,0.01013,39444.0,39416.0,2.91703905]
[1645845478869,0.21349619,39451.0,39420.0,0.377767]
[1645845479077,0.00130351,39451.0,39438.0,0.47019266]
[1645845479265,0.00130351,39451.0,39439.0,0.99785866]
[1645845479466,0.00130351,39451.0,39439.0,1.04455866]
[1645845480067,0.3665,39452.0,39439.0,1.17130666]
[1645845480265,0.18712621,39447.0,39439.0,1.17130666]
[1645845481105,0.3665,39452.0,39439.0,1.17130666]
[1645845481307,0.3665,39452.0,39441.0,0.06338]
[1645845481511,0.3665,39452.0,39442.0,0.79465866]
[1645845481706,0.3665,39452.0,39442.0,0.89465866]
[1645845481906,0.3665,39452.0,39442.0,0.99465866]
[1645845482106,0.2168093,39450.0,39442.0,0.99465866]
[1645845482509,0.00036998,39449.0,39442.0,1.01965866]
[1645845482709,0.00036998,39449.0,39442.0,0.91965866]
[1645845482908,0.00036998,39449.0,39442.0,0.92065866]
[1645845483110,0.00036998,39449.0,39444.0,0.3499]
[1645845483310,0.00036998,39449.0,39445.0,0.79219206]
[1645845483509,0.00036998,39449.0,39445.0,0.89219206]
[1645845483712,0.00036998,39449.0,39445.0,0.524466]
[1645845483909,0.00036998,39447.0,39445.0,0.524466]
[1645845484113,0.19074089,39447.0,39445.0,0.474466]
[1645845484362,0.19074089,39447.0,39445.0,0.424466]
[1645845484656,0.14707453,39444.0,39441.0,0.10977]
[1645845484859,0.14707453,39444.0,39441.0,0.15647]
[1645845485857,0.14707453,39444.0,39441.0,0.40647]
[1645845486055,0.14707453,39444.0,39441.0,0.77476886]
[1645845487462,0.14741852,39444.0,39441.0,0.77476886]
[1645845488106,0.14741852,39444.0,39441.0,0.83815186]
[1645845488305,0.14741852,39444.0,39441.0,0.88815186]
[1645845488306,0.14707453,39444.0,39441.0,0.88815186]
[1645845488508,0.14741852,39444.0,39441.0,0.88815186]
[1645845488905,0.14741852,39444.0,39441.0,0.89015186]
[1645845489506,0.14707453,39444.0,39441.0,0.89015186]
[1645845489705,0.14720575,39444.0,39441.0,0.89015186]
[1645845489906,0.14720575,39444.0,39443.0,0.7697]
[1645845490118,0.14720575,39444.0,39443.0,1.56233186]
[1645845490308,0.14720575,39444.0,39443.0,2.62282186]
[1645845490706,0.14707453,39444.0,39443.0,2.62282186]
[1645845491207,0.14707453,39444.0,39443.0,1.85312186]
[1645845491985,0.14707453,39444.0,39443.0,1.138223]
[1645845492179,0.14707453,39444.0,39443.0,0.870387]
[1645845493182,1.33166817,39443.0,39438.0,0.002]
[1645845493382,0.19981541,39433.0,39432.0,0.05]
[1645845493579,0.19981541,39433.0,39432.0,0.37764]
[1645845494380,0.02521,39442.0,39432.0,0.37764]
[1645845494581,0.00036969,39434.0,39432.0,0.37764]
[1645845495485,0.19411476,39436.0,39432.0,0.37764]
[1645845495703,0.3686,39435.0,39432.0,0.62764]
[1645845495903,0.36895802,39435.0,39432.0,0.62764]
[1645845496704,0.3686,39435.0,39432.0,0.62764]
[1645845496904,0.36873118,39435.0,39432.0,0.37764]
[1645845497603,0.36873118,39435.0,39432.0,0.37264]
[1645845497805,0.3686,39435.0,39432.0,0.37264]
[1645845498010,0.36873118,39435.0,39432.0,0.37264]
[1645845499005,0.3686,39435.0,39432.0,0.37564]
[1645845499454,0.36896939,39435.0,39432.0,0.37564]
[1645845500256,0.3686,39435.0,39432.0,0.37264]
[1645845500455,0.36896939,39435.0,39432.0,0.37264]
[1645845501057,0.36896939,39435.0,39432.0,0.37464]
[1645845501462,0.3686,39435.0,39432.0,0.42464]
[1645845501658,0.36896939,39435.0,39432.0,0.538035]
[1645845502158,0.36896939,39435.0,39432.0,0.536035]
[1645845502758,0.3686,39435.0,39432.0,0.536035]
[1645845502959,0.36873118,39435.0,39432.0,0.541035]
[1645845503805,0.3686,39435.0,39432.0,0.541035]
[1645845504206,0.3686,39435.0,39432.0,0.536035]
[1645845504207,0.3689691,39435.0,39432.0,0.536035]
[1645845505007,0.3686,39435.0,39432.0,0.536035]
[1645845505206,0.36873118,39435.0,39432.0,0.536035]
[1645845505408,0.36873118,39435.0,39432.0,0.47264]
[1645845505813,0.36873118,39435.0,39432.0,0.42264]
[1645845506206,0.3686,39435.0,39432.0,0.42264]
[1645845506406,0.36873118,39435.0,39432.0,0.42264]
[1645845507054,0.36873118,39435.0,39432.0,0.42564]
[1645845507455,0.3686,39435.0,39432.0,0.42564]
[1645845507653,0.36873118,39435.0,39432.0,0.37564]
[1645845508254,0.36873118,39435.0,39432.0,0.37264]
[1645845508656,0.3686,39435.0,39432.0,0.37264]
[1645845508854,0.36896881,39435.0,39432.0,0.37264]
[1645845509056,0.55063142,39435.0,39432.0,0.37264]
[1645845509854,0.55026261,39435.0,39432.0,0.37264]
[1645845510354,0.55063142,39435.0,39432.0,0.37264]
[1645845511210,0.55026261,39435.0,39432.0,0.37264]
[1645845511412,0.55063142,39435.0,39432.0,0.37264]
[1645845512210,0.55026261,39435.0,39432.0,0.37264]
[1645845512510,0.55063142,39435.0,39432.0,0.37264]
[1645845513110,0.55063142,39435.0,39432.0,0.37464]
[1645845513515,0.55026261,39435.0,39432.0,0.37464]
[1645845513913,0.55063142,39435.0,39432.0,0.37464]
[1645845514355,0.55063142,39435.0,39432.0,0.37264]
[1645845514756,0.55026261,39435.0,39432.0,0.37264]
[1645845514956,0.55063142,39435.0,39432.0,0.37264]
[1645845515156,0.55063142,39435.0,39432.0,0.37464]
[1645845515858,0.55026261,39435.0,39432.0,0.37464]
[1645845516060,0.55063142,39435.0,39432.0,0.37464]
[1645845516257,0.55063142,39435.0,39432.0,0.37264]
[1645845516458,0.55063142,39435.0,39432.0,0.002563]
[1645845517059,0.55026261,39435.0,39432.0,0.004563]
[1645845517259,0.55039408,39435.0,39432.0,0.004563]
[1645845517660,0.55039408,39435.0,39433.0,0.372741]
[1645845518304,0.55026261,39435.0,39433.0,0.372741]
[1645845518500,0.55026261,39435.0,39432.0,0.002563]
[1645845518899,0.55026261,39435.0,39433.0,0.372742]
[1645845519099,0.55026261,39435.0,39432.0,0.004563]
[1645845519699,0.55039408,39435.0,39433.0,0.372741]
[1645845520802,0.55026261,39435.0,39433.0,0.372741]
[1645845521003,0.55026261,39435.0,39433.0,0.374741]
[1645845521206,1.15,39434.0,39427.0,0.372799]
[1645845522156,0.00036912,39432.0,39427.0,0.372799]
[1645845523156,1.15,39434.0,39427.0,0.372799]
[1645845523356,0.00036912,39431.0,39427.0,0.372799]
[1645845524260,0.55026261,39435.0,39427.0,0.372799]
[1645845524558,0.00036912,39431.0,39427.0,0.372799]
[1645845524959,0.00036912,39431.0,39427.0,0.375799]
[1645845525604,0.55026261,39435.0,39427.0,0.375799]
[1645845525806,0.00036912,39431.0,39427.0,0.375799]
[1645845526205,0.00036912,39431.0,39427.0,0.372799]
[1645845526604,0.57547261,39435.0,39427.0,0.372799]
[1645845526605,0.54952873,39435.0,39427.0,0.372799]
[1645845526807,0.00013118,39431.0,39427.0,0.372799]
[1645845527006,0.00013118,39431.0,39427.0,0.376799]
[1645845527814,0.54952873,39435.0,39427.0,0.376799]
[1645845528307,0.00013117,39433.0,39427.0,0.372799]
[1645845529010,0.02521,39434.0,39427.0,0.372799]
[1645845529453,0.00036882,39433.0,39427.0,0.372799]
[1645845530353,0.02521,39434.0,39427.0,0.372799]
[1645845530553,0.00036882,39433.0,39427.0,0.372799]
[1645845531355,0.54952873,39435.0,39427.0,0.372799]
[1645845531560,0.57473873,39435.0,39427.0,0.372799]
[1645845531852,0.00036882,39433.0,39427.0,0.372799]
[1645845532757,0.57473873,39435.0,39427.0,0.372799]
[1645845533103,0.57473873,39435.0,39427.0,0.375799]
[1645845533908,0.54952873,39435.0,39429.0,0.372783]
[1645845535305,0.36786612,39435.0,39429.0,0.372783]
[1645845535508,0.36786612,39435.0,39429.0,0.422783]
[1645845535509,0.36823463,39435.0,39429.0,0.422783]
[1645845535707,0.36823463,39435.0,39430.0,0.0467]
[1645845536007,0.36823463,39435.0,39431.0,0.372763]
[1645845536209,0.36823463,39435.0,39431.0,0.419463]
[1645845536408,0.58182263,39435.0,39431.0,0.419463]
[1645845536611,0.58195325,39435.0,39431.0,0.419463]
[1645845536856,0.36799674,39435.0,39431.0,0.419463]
[1645845537457,0.36786612,39435.0,39431.0,0.419463]
[1645845537657,0.36799674,39435.0,39431.0,0.419463]
[1645845538658,0.36786612,39435.0,39431.0,0.419463]
[1645845539057,0.36823434,39435.0,39431.0,0.419463]
[1645845539860,0.36786612,39435.0,39431.0,0.419463]
[1645845540158,0.36823434,39435.0,39431.0,0.419463]
[1645845540806,0.36823434,39435.0,39431.0,0.372763]
[1645845541206,0.36786612,39435.0,39431.0,0.372763]
[1645845541605,0.36823434,39435.0,39431.0,0.372763]
[1645845542407,0.36786612,39435.0,39431.0,0.372763]
[1645845542606,0.19543988,39433.0,39431.0,0.372763]
[1645845544007,0.36923434,39435.0,39431.0,0.372763]
[1645845544660,0.36786612,39435.0,39431.0,0.372763]
[1645845545056,0.36823434,39435.0,39431.0,0.372763]
[1645845545256,0.36823434,39435.0,39431.0,0.374763]
[1645845545860,0.36786612,39435.0,39431.0,0.374763]
[1645845546157,0.36823434,39435.0,39431.0,0.424763]
[1645845546358,0.36823434,39435.0,39431.0,0.422763]
[1645845546965,0.36823434,39435.0,39431.0,0.469463]
[1645845547258,0.36786612,39435.0,39431.0,0.469463]
[1645845547458,0.36823434,39435.0,39431.0,0.469463]
[1645845547659,0.36823434,39435.0,39431.0,0.532862]
[1645845548305,0.36786612,39435.0,39431.0,0.532862]
[1645845548705,0.36823434,39435.0,39431.0,0.532862]
[1645845549107,0.36823434,39435.0,39431.0,0.90103068]
[1645845549510,0.36786612,39435.0,39431.0,0.90103068]
[1645845549907,0.36823434,39435.0,39431.0,0.90103068]
[1645845550708,0.36786612,39435.0,39431.0,0.90103068]
[1645845551107,0.36823434,39435.0,39431.0,0.90103068]
[1645845551963,0.36786612,39435.0,39431.0,0.90103068]
[1645845552170,0.36823434,39435.0,39431.0,0.90103068]
[1645845553165,0.36786612,39435.0,39431.0,0.90103068]
[1645845553364,0.36823434,39435.0,39431.0,0.90103068]
[1645845555617,0.36786612,39435.0,39431.0,0.90103068]
[1645845555816,0.36816107,39435.0,39431.0,0.90103068]
[1645845556521,0.36816107,39435.0,39431.0,1.73412468]
[1645845556717,0.36779285,39435.0,39431.0,1.98402468]
[1645845557117,0.36816107,39435.0,39432.0,1.53048]
[1645845557319,0.36816107,39435.0,39433.0,0.78761068]
[1645845557518,0.36816107,39435.0,39434.0,1.12892868]
[1645845557718,0.36816107,39435.0,39434.0,1.54835868]
[1645845557920,0.36779285,39435.0,39434.0,2.31805868]
[1645845558123,0.1,39443.0,39437.0,0.7697]
[1645845558321,0.1,39443.0,39438.0,1.55908518]
[1645845558523,0.1,39443.0,39439.0,0.76067]
[1645845558819,0.1,39443.0,39441.0,0.372652]
[1645845559019,0.1,39443.0,39442.0,0.78934218]
[1645845560159,0.1,39443.0,39442.0,0.419341]
[1645845561159,0.1,39443.0,39442.0,0.420341]
[1645845561360,0.1,39443.0,39442.0,0.79034218]
[1645845562360,0.1,39443.0,39442.0,0.78934218]
[1645845562962,0.1,39443.0,39442.0,0.419341]
[1645845563207,0.1,39443.0,39442.0,0.420341]
[1645845563407,0.47000118,39443.0,39442.0,0.001]
[1645845563609,0.002,39440.0,39439.0,0.76067]
[1645845564208,0.002,39440.0,39439.0,1.133345]
[1645845565210,0.004,39440.0,39439.0,1.133345]
[1645845566410,0.002,39440.0,39439.0,1.133345]
[1645845567269,0.003,39440.0,39439.0,1.133345]
[1645845568366,0.002,39440.0,39439.0,1.133345]
[1645845569268,0.004,39440.0,39439.0,1.133345]
[1645845570474,0.002,39440.0,39439.0,1.133345]
[1645845571311,0.003,39440.0,39439.0,1.133345]
[1645845573016,0.002,39440.0,39439.0,1.133345]
[1645845573213,0.002,39440.0,39439.0,1.134345]
[1645845573414,0.002,39440.0,39439.0,1.181045]
[1645845574016,0.002,39440.0,39439.0,1.231045]
[1645845574459,0.002,39440.0,39439.0,1.180045]
[1645845574660,0.50813092,39442.0,39440.0,0.372665]
[1645845574861,0.50813092,39442.0,39440.0,0.419365]
[1645845575059,0.00013092,39441.0,39440.0,0.419365]
[1645845576063,0.50813092,39442.0,39440.0,0.419365]
[1645845577262,0.50813092,39442.0,39440.0,0.420365]
[1645845579008,0.50813092,39442.0,39440.0,0.419365]
[1645845579208,0.50913092,39442.0,39440.0,0.419365]
[1645845579809,0.50913092,39442.0,39440.0,0.372665]
[1645845580410,0.50813092,39442.0,39440.0,0.372665]
[1645845583063,0.49813092,39442.0,39440.0,0.372665]
[1645845583266,0.49813092,39442.0,39440.0,0.373665]
[1645845583964,0.49813092,39442.0,39440.0,0.424365]
[1645845586408,0.49813092,39442.0,39440.0,0.423365]
[1645845587208,0.49813092,39442.0,39440.0,0.424365]
[1645845587608,0.49813092,39442.0,39440.0,0.373665]
[1645845588410,0.49813092,39442.0,39440.0,0.372665]
[1645845589213,0.49813092,39442.0,39440.0,0.373665]
[1645845589664,0.49813092,39442.0,39440.0,0.424365]
[1645845590563,0.49813092,39442.0,39440.0,0.423365]
[1645845591164,0.49813092,39442.0,39440.0,0.424365]
[1645845592465,0.49813092,39442.0,39440.0,0.423365]
[1645845593308,0.49813092,39442.0,39440.0,0.424365]
[1645845594210,0.73713676,39442.0,39440.0,0.373665]
[1645845594411,0.73713676,39442.0,39440.0,0.001]
[1645845594610,0.73713676,39442.0,39439.0,0.76067]
[1645845595210,0.37000118,39441.0,39439.0,0.13905144]
[1645845595513,0.22143958,39433.0,39431.0,0.5]
[1645845595710,0.22143958,39433.0,39432.0,0.5]
[1645845595910,0.22143958,39433.0,39432.0,0.872753]
[1645845596112,0.22143958,39433.0,39432.0,0.5]
[1645845596310,0.22143958,39433.0,39428.0,0.372792]
[1645845596515,0.02521,39439.0,39428.0,0.372792]
[1645845596714,0.02521,39439.0,39429.0,0.5]
[1645845596980,0.49813092,39442.0,39429.0,0.563409]
[1645845597180,0.001,39439.0,39429.0,1.333109]
[1645845597378,0.001,39439.0,39430.0,0.372768]
[1645845597577,0.21361892,39439.0,39430.0,0.372768]
[1645845599278,0.21261892,39439.0,39430.0,0.372768]
[1645845599779,0.21923045,39433.0,39430.0,0.372768]
[1645845602113,0.02521,39441.0,39430.0,0.372768]
[1645845602314,0.02521,39441.0,39429.0,0.063409]
[1645845603316,0.19054539,39437.0,39430.0,0.372768]
[1645845605367,0.19054539,39437.0,39430.0,0.373768]
[1645845605868,0.19031064,39437.0,39430.0,0.373768]
[1645845607268,0.19031064,39437.0,39430.0,0.374768]
[1645845607468,0.19031064,39437.0,39430.0,0.373768]
[1645845607867,0.19031064,39437.0,39431.0,0.37185696]
[1645845608112,0.49813092,39442.0,39431.0,0.37185696]
[1645845608318,0.49813092,39442.0,39432.0,0.372746]
[1645845608716,0.02521,39441.0,39431.0,0.37185696]
[1645845608915,0.02521,39441.0,39433.0,0.372737]
[1645845609116,0.23463146,39439.0,39430.0,0.74462496]
[1645845609317,0.23463146,39439.0,39431.0,0.001]
[1645845609520,0.23463146,39439.0,39432.0,0.372749]
[1645845609716,0.23463146,39439.0,39431.0,0.001]
[1645845610717,0.49813092,39442.0,39430.0,0.37185696]
[1645845611317,0.49913092,39442.0,39430.0,0.37185696]
[1645845611718,0.02521,39441.0,39430.0,0.37185696]
[1645845611966,0.49913092,39442.0,39430.0,0.37185696]
[1645845612567,0.02521,39441.0,39430.0,0.37185696]
[1645845613070,0.49813092,39442.0,39430.0,0.37185696]
[1645845613269,0.49813092,39442.0,39430.0,0.37285696]
[1645845613668,0.02521,39441.0,39430.0,0.37285696]
[1645845614469,0.02521,39441.0,39429.0,0.063409]
[1645845614673,0.02521,39441.0,39430.0,0.37185696]
[1645845615273,0.02521,39441.0,39430.0,0.37285696]
[1645845616116,0.39706696,39441.0,39430.0,0.001]
[1645845616517,0.39706696,39441.0,39429.0,0.063409]
[1645845616717,0.49813092,39442.0,39430.0,0.372768]
[1645845616917,0.49813092,39442.0,39430.0,0.372767]
[1645845617121,0.49813092,39442.0,39429.0,0.063409]
[1645845617324,0.49813092,39442.0,39430.0,0.372767]
[1645845617519,0.49813092,39442.0,39429.0,0.063409]
[1645845617719,0.49813092,39442.0,39430.0,0.372768]
[1645845617920,0.02521,39441.0,39429.0,0.063409]
[1645845618119,0.49813092,39442.0,39430.0,0.372767]
[1645845618320,0.49813092,39442.0,39429.0,0.063409]
[1645845618619,0.37185696,39441.0,39429.0,0.063409]
[1645845619020,0.16984679,39437.0,39430.0,0.372768]
[1645845619872,0.16893319,39437.0,39430.0,0.372768]
[1645845620268,0.16893319,39437.0,39429.0,0.065409]
[1645845620467,0.16893319,39437.0,39430.0,0.372771]
[1645845621269,0.16893319,39437.0,39430.0,0.373771]
[1645845622670,0.16893319,39437.0,39430.0,0.372771]
[1645845623120,0.52334092,39442.0,39430.0,0.372771]
[1645845623321,0.52434092,39442.0,39430.0,0.001]
[1645845624322,0.18161843,39440.0,39430.0,0.001]
[1645845624523,0.18161843,39440.0,39431.0,0.372757]
[1645845625027,0.18161843,39440.0,39430.0,0.372768]
[1645845625224,0.18161843,39440.0,39431.0,0.001]
[1645845625424,0.20682843,39440.0,39431.0,0.001]
[1645845626629,0.20682843,39440.0,39429.0,0.063409]
[1645845626630,0.20682843,39440.0,39430.0,0.372769]
[1645845627066,0.20682843,39440.0,39429.0,0.063409]
[1645845627268,0.20682843,39440.0,39430.0,0.001]
[1645845627767,0.20682843,39440.0,39431.0,0.372759]
[1645845627768,0.17633879,39434.0,39431.0,0.372759]
[1645845628167,0.17633879,39434.0,39430.0,0.001]
[1645845628370,0.17633879,39434.0,39431.0,0.372763]
[1645845628567,0.17633879,39434.0,39429.0,0.063409]
[1645845628767,0.17633879,39434.0,39430.0,0.372772]
[1645845629368,0.17733879,39434.0,39430.0,0.372772]
[1645845630611,0.17633879,39434.0,39430.0,0.372772]
[1645845631213,0.17633879,39434.0,39430.0,0.373772]
[1645845631415,0.002,39439.0,39430.0,0.001]
[1645845632513,0.2101372,39437.0,39431.0,0.37276]
[1645845633312,0.2101372,39437.0,39431.0,0.37376]
[1645845633714,0.2101372,39437.0,39431.0,0.001]
[1645845634578,0.2101372,39437.0,39429.0,0.063409]
[1645845635283,0.2101372,39437.0,39430.0,0.37277]
[1645845635582,0.2101372,39437.0,39430.0,0.34777]
[1645845637384,0.2101372,39437.0,39430.0,0.001]
[1645845638716,0.2101372,39437.0,39431.0,0.347762]
[1645845639516,0.2101372,39437.0,39431.0,0.348762]
[1645845640515,0.2101372,39437.0,39431.0,0.347762]
[1645845641318,0.2121372,39437.0,39431.0,0.347762]
[1645845642569,0.2101372,39437.0,39431.0,0.347762]
[1645845643365,0.2121372,39437.0,39431.0,0.347762]
[1645845644565,0.2101372,39437.0,39431.0,0.347762]
[1645845644965,0.2101372,39437.0,39429.0,0.063409]
[1645845645166,0.2101372,39437.0,39430.0,0.347771]
[1645845645366,0.2111372,39437.0,39431.0,0.347762]
[1645845646622,0.2101372,39437.0,39431.0,0.347762]
[1645845646823,0.49813092,39442.0,39431.0,0.347762]
[1645845647023,0.49813092,39442.0,39432.0,0.0507]
[1645845647822,0.52334092,39442.0,39432.0,0.0507]
[1645845648125,0.21596796,39439.0,39432.0,0.0507]
[1645845649376,0.21596796,39439.0,39432.0,0.0517]
[1645845650576,0.21596796,39439.0,39432.0,0.0507]
[1645845651175,0.21596796,39439.0,39429.0,0.063409]
[1645845651380,0.21796796,39439.0,39429.0,0.063409]
[1645845652379,0.21796796,39439.0,39429.0,0.114109]
[1645845652579,0.21596796,39439.0,39430.0,0.347769]
[1645845653424,0.21696796,39439.0,39429.0,0.114109]
[1645845654022,0.21696796,39439.0,39430.0,0.347769]
[1645845654220,0.21696796,39439.0,39429.0,0.063409]
[1645845654621,0.21596796,39439.0,39430.0,0.347769]
[1645845655021,0.21596796,39439.0,39429.0,0.063409]
[1645845655222,0.21596796,39439.0,39431.0,0.34776]
[1645845655422,0.21596796,39439.0,39431.0,0.347759]
[1645845655623,0.21596796,39439.0,39430.0,0.001]
[1645845655927,0.23091723,39433.0,39432.0,0.347755]
[1645845656227,0.57172122,39431.0,39426.0,0.00034832]
[1645845656423,0.57172122,39431.0,39426.0,0.5]
[1645845656424,0.377663,39430.0,39426.0,0.5]
[1645845657182,0.16996971,39427.0,39421.0,0.6163]
[1645845657383,0.16996971,39427.0,39420.0,0.347872]
[1645845657582,0.16996971,39427.0,39420.0,0.347877]
[1645845657782,0.16996971,39427.0,39419.0,0.467925]
[1645845657986,0.16996971,39427.0,39419.0,0.063425]
[1645845658587,0.16996971,39427.0,39420.0,0.347877]
[1645845658983,0.16996971,39427.0,39421.0,0.00036201]
[1645845659785,0.16996971,39427.0,39422.0,0.347857]
[1645845660184,0.16996971,39427.0,39422.0,0.348219]
[1645845660384,0.16996971,39427.0,39422.0,0.000362]
[1645845661229,0.16996971,39427.0,39419.0,0.063425]
[1645845661524,0.16996971,39427.0,39423.0,0.000362]
[1645845662324,0.3702517,39430.0,39419.0,0.059787]
[1645845662325,0.20372201,39420.0,39419.0,0.059787]
[1645845662628,0.20372201,39420.0,39419.0,0.402667]
[1645845663025,0.20372201,39420.0,39419.0,0.34288]
[1645845663229,0.20372201,39420.0,39416.0,0.342915]
[1645845663629,0.20372201,39420.0,39411.0,0.06013]
[1645845663832,0.20372201,39420.0,39416.0,0.00023838]
[1645845664227,0.20372201,39420.0,39410.0,0.1255299]
[1645845664482,0.03246,39421.0,39405.0,0.04089192]
[1645845664483,0.22822399,39411.0,39405.0,0.065546]
[1645845664676,0.31282399,39411.0,39407.0,0.343009]
[1645845665776,0.22822399,39411.0,39407.0,0.343009]
[1645845666777,0.22798399,39411.0,39407.0,0.343009]
[1645845667979,0.22798399,39411.0,39408.0,0.343002]
[1645845668222,0.22798399,39411.0,39406.0,0.04]
[1645845668422,0.22798399,39411.0,39408.0,0.343002]
[1645845668623,0.22798399,39411.0,39408.0,0.00036769]
[1645845669027,0.22798399,39411.0,39408.0,7.69e-06]
[1645845669028,0.7479327,39410.0,39408.0,7.69e-06]
[1645845669223,0.469371,39410.0,39408.0,7.69e-06]
[1645845669624,0.3687994,39409.0,39406.0,1.119e-05]
[1645845669829,0.377681,39408.0,39406.0,1.119e-05]
[1645845670429,0.3687994,39409.0,39406.0,1.119e-05]
[1645845670626,0.377681,39408.0,39406.0,1.119e-05]
[1645845670827,0.22798399,39411.0,39406.0,1.119e-05]
[1645845670828,0.3687994,39410.0,39406.0,1.119e-05]
[1645845671029,0.377681,39409.0,39406.0,1.119e-05]
[1645845671329,0.4264,39408.0,39406.0,1.119e-05]
[1645845672374,0.3464,39408.0,39406.0,1.119e-05]
[1645845677524,0.3474,39408.0,39406.0,1.119e-05]
[1645845678623,0.3464,39408.0,39406.0,1.119e-05]
[1645845679480,0.3484,39408.0,39406.0,1.119e-05]
[1645845679678,0.34824248,39408.0,39406.0,1.119e-05]
[1645845680680,0.34624248,39408.0,39406.0,1.119e-05]
[1645845681889,0.34624248,39408.0,39407.0,0.343014]
[1645845682081,0.34624248,39408.0,39407.0,0.393714]
[1645845683522,0.34624248,39408.0,39407.0,0.0507]
[1645845685125,0.34624248,39408.0,39406.0,0.00035183]
[1645845685325,0.34624248,39408.0,39406.0,1.119e-05]
[1645845685527,0.34624248,39408.0,39407.0,0.001]
[1645845686725,0.34624248,39408.0,39406.0,0.00035861]
[1645845687571,0.34724248,39408.0,39406.0,0.00035861]
[1645845687770,0.34724248,39408.0,39406.0,1.119e-05]
[1645845688769,0.34624248,39408.0,39406.0,1.119e-05]
[1645845688968,0.34624248,39408.0,39405.0,0.00165709]
[1645845689170,0.34624248,39408.0,39406.0,0.393722]
[1645845689370,0.34624248,39408.0,39406.0,0.394722]
[1645845690370,0.34624248,39408.0,39406.0,0.444722]
[1645845690824,0.34624248,39408.0,39406.0,0.443722]
[1645845691219,0.34624248,39408.0,39406.0,0.493722]
[1645845691821,0.34624248,39408.0,39407.0,1.06536958]
[1645845692022,0.00033405,39411.0,39409.0,0.02521]
[1645845692224,0.00033405,39411.0,39410.0,1.82069523]
[1645845692425,0.423,39426.0,39410.0,1.053193]
[1645845692722,0.423,39426.0,39415.0,0.342923]
[1645845692921,0.31077206,39428.0,39416.0,0.0507]
[1645845693321,0.31077206,39428.0,39417.0,0.342902]
[1645845693522,0.17427206,39428.0,39418.0,0.0507]
[1645845693722,0.17427206,39428.0,39416.0,0.003]
[1645845693723,0.17297205,39428.0,39419.0,0.0507]
[1645845694021,0.00032507,39424.0,39420.0,0.0507]
[1645845694222,0.00032507,39424.0,39421.0,0.0507]
[1645845694694,0.18684573,39422.0,39421.0,0.0507]
[1645845695491,0.18884573,39422.0,39421.0,0.0507]
[1645845696692,0.18684573,39422.0,39421.0,0.0507]
[1645845697393,0.18667359,39422.0,39421.0,0.0507]
[1645845697995,0.56435459,39422.0,39421.0,0.0507]
[1645845698230,0.1014,39420.0,39416.0,0.002]
[1645845698430,0.1014,39420.0,39417.0,0.0507]
[1645845699534,0.1014,39420.0,39417.0,0.0517]
[1645845699932,0.08172577,39420.0,39417.0,0.0517]
[1645845700833,0.08172577,39420.0,39417.0,0.0507]
[1645845700834,0.0814,39420.0,39417.0,0.0507]
[1645845701235,0.08172577,39420.0,39417.0,0.0507]
[1645845701434,0.08272577,39420.0,39417.0,0.0507]
[1645845701888,0.08272577,39420.0,39418.0,0.69160638]
[1645845702086,0.0824,39420.0,39419.0,0.0507]
[1645845702486,0.08272577,39420.0,39419.0,0.70929292]
[1645845702689,0.08172577,39420.0,39419.0,0.70929292]
[1645845703286,0.0814,39420.0,39419.0,0.70929292]
[1645845704286,0.0814,39420.0,39419.0,0.75999292]
[1645845704487,0.0814,39420.0,39419.0,1.39429292]
[1645845705485,0.0764,39420.0,39419.0,1.39629292]
[1645845706724,0.0764,39420.0,39419.0,1.39429292]
[1645845707525,0.0764,39420.0,39419.0,1.39629292]
[1645845708725,0.0764,39420.0,39419.0,1.39429292]
[1645845715533,0.0764,39420.0,39419.0,1.39629292]
[1645845716876,0.0764,39420.0,39419.0,1.38929292]
[1645845718478,0.0764,39420.0,39419.0,1.39229292]
[1645845718680,0.0764,39420.0,39419.0,1.38929292]
[1645845719481,0.05521786,39420.0,39419.0,1.39129292]
[1645845721431,0.05521786,39420.0,39419.0,1.38929292]
[1645845723629,0.05521786,39420.0,39419.0,1.39129292]
[1645845724477,0.05521786,39420.0,39419.0,1.44129292]
[1645845724677,0.05521786,39420.0,39419.0,1.49129292]
[1645845724877,0.05521786,39420.0,39419.0,1.48929292]
[1645845725478,0.05521786,39420.0,39419.0,1.49229292]
[1645845726478,0.05521786,39420.0,39419.0,1.74219292]
[1645845726678,0.4213,39427.0,39419.0,1.74219292]
[1645845726879,0.4213,39427.0,39421.0,0.290217]
[1645845727078,0.4213,39427.0,39422.0,0.74933344]
[1645845728129,0.4213,39427.0,39423.0,0.063405]
[1645845728331,0.4213,39427.0,39424.0,0.81271844]
[1645845728530,0.4213,39427.0,39424.0,0.86271844]
[1645845728734,0.4213,39427.0,39425.0,0.05]
[1645845728930,0.42141304,39427.0,39426.0,0.74929444]
[1645845729632,0.42141304,39427.0,39426.0,0.75129444]
[1645845729829,0.4213,39427.0,39426.0,0.75129444]
[1645845730430,0.4163,39427.0,39426.0,0.75129444]
[1645845730831,0.4163,39427.0,39426.0,0.74929444]
[1645845731631,0.4163,39427.0,39426.0,0.75129444]
[1645845732486,0.4163,39427.0,39426.0,0.81469944]
[1645845732784,0.4163,39427.0,39426.0,1.57560944]
[1645845733184,0.4163,39427.0,39426.0,1.783726]
[1645845733384,0.62369968,39427.0,39426.0,1.149426]
[1645845733583,0.62369968,39427.0,39426.0,0.81361]
[1645845733787,0.62369968,39427.0,39426.0,0.76291]
[1645845734490,0.62369968,39427.0,39413.0,0.0507]